[Event "NK Rapid Vrouwen 2019"]
[Site "Amstelveen, Netherlands"]
[Date "2019.12.01"]
[Round "5.4"]
[White "Peng, Zhaoqin"]
[Black "Keetman, Maaike"]
[Result "1-0"]
[TimeControl "15m+10s"]
[WhiteTitle "GM"]
[WhiteFideId "1004786"]
[BlackFideId "1033697"]
[WhiteElo "2364"]
[BlackElo "2181"]

1. d4 {[%clk 00:15:17]} {[%emt 00:00:03]} Nf6 {[%clk 00:15:18]} {[%emt
00:00:02]} 2. Nf3 {[%clk 00:15:25]} {[%emt 00:00:03]} e6 {[%clk 00:15:25]}
{[%emt 00:00:03]} 3. e3 {[%clk 00:15:21]} {[%emt 00:00:14]} d5 {[%clk
00:15:11]} {[%emt 00:00:23]} 4. Bd3 {[%clk 00:15:29]} {[%emt 00:00:02]} c5
{[%clk 00:14:46]} {[%emt 00:00:35]} 5. c3 {[%clk 00:15:32]} {[%emt 00:00:07]}
Nc6 {[%clk 00:14:52]} {[%emt 00:00:03]} 6. Nbd2 {[%clk 00:15:38]} {[%emt
00:00:04]} Be7 {[%clk 00:14:47]} {[%emt 00:00:15]} 7. O-O {[%clk 00:15:44]}
{[%emt 00:00:04]} O-O {[%clk 00:14:53]} {[%emt 00:00:03]} 8. dxc5 {[%clk
00:15:06]} {[%emt 00:00:48]} Bxc5 {[%clk 00:15:01]} {[%emt 00:00:03]} 9. b4
{[%clk 00:15:14]} {[%emt 00:00:01]} Bd6 {[%clk 00:14:01]} {[%emt 00:01:09]} 10.
a3 {[%clk 00:15:23]} {[%emt 00:00:03]} Qc7 {[%clk 00:12:52]} {[%emt 00:01:18]}
11. Bb2 {[%clk 00:13:33]} {[%emt 00:02:01]} a5 {[%clk 00:11:12]} {[%emt
00:01:50]} 12. Qc2 {[%clk 00:11:42]} {[%emt 00:02:00]} h6 {[%clk 00:09:11]}
{[%emt 00:02:12]} 13. h3 {[%clk 00:10:15]} {[%emt 00:01:37]} b6 {[%clk
00:08:23]} {[%emt 00:00:58]} 14. b5 {[%clk 00:07:25]} {[%emt 00:03:00]} Ne5
{[%clk 00:07:54]} {[%emt 00:00:39]} 15. Nxe5 {[%clk 00:07:24]} {[%emt
00:00:10]} Bxe5 {[%clk 00:08:02]} {[%emt 00:00:02]} 16. Nf3 {[%clk 00:07:27]}
{[%emt 00:00:07]} Bd6 {[%clk 00:08:10]} {[%emt 00:00:02]} 17. c4 {[%clk
00:07:21]} {[%emt 00:00:16]} Qe7 {[%clk 00:06:51]} {[%emt 00:01:29]} 18. Nd4
{[%clk 00:05:20]} {[%emt 00:02:11]} Bb7 {[%clk 00:06:07]} {[%emt 00:00:54]} 19.
Nc6 {[%clk 00:04:59]} {[%emt 00:00:31]} Qc7 {[%clk 00:05:36]} {[%emt 00:00:41]}
20. Bxf6 {[%clk 00:04:51]} {[%emt 00:00:18]} gxf6 {[%clk 00:05:45]} {[%emt
00:00:01]} 21. cxd5 {[%clk 00:04:58]} {[%emt 00:00:04]} exd5 {[%clk 00:05:28]}
{[%emt 00:00:26]} 22. Qe2 {[%clk 00:04:47]} {[%emt 00:00:20]} Rfe8 {[%clk
00:04:26]} {[%emt 00:01:12]} 23. Qg4+ {[%clk 00:03:44]} {[%emt 00:01:13]} Kf8
{[%clk 00:04:34]} {[%emt 00:00:02]} 24. Rfc1 {[%clk 00:03:41]} {[%emt
00:00:14]} Bc5 {[%clk 00:04:17]} {[%emt 00:00:26]} 25. Qh5 {[%clk 00:02:59]}
{[%emt 00:00:51]} Bxc6 {[%clk 00:04:13]} {[%emt 00:00:15]} 26. bxc6 {[%clk
00:02:48]} {[%emt 00:00:21]} Qxc6 {[%clk 00:03:41]} {[%emt 00:00:42]} 27. Qxh6+
{[%clk 00:02:47]} {[%emt 00:00:11]} Ke7 {[%clk 00:03:49]} 28. Qf4 {[%clk
00:02:51]} {[%emt 00:00:06]} Rg8 {[%clk 00:03:09]} {[%emt 00:00:51]} 29. Be2
{[%clk 00:02:47]} {[%emt 00:00:13]} Qd6 {[%clk 00:03:01]} {[%emt 00:00:18]} 30.
Qxd6+ {[%clk 00:01:42]} {[%emt 00:01:15]} Kxd6 {[%clk 00:03:09]} {[%emt
00:00:02]} 31. Rd1 {[%clk 00:01:48]} {[%emt 00:00:04]} Ke5 {[%clk 00:03:00]}
{[%emt 00:00:19]} 32. Bf3 {[%clk 00:01:49]} {[%emt 00:00:08]} Rad8 {[%clk
00:03:09]} {[%emt 00:00:01]} 33. a4 {[%clk 00:01:56]} {[%emt 00:00:03]} d4
{[%clk 00:02:20]} {[%emt 00:00:59]} 34. exd4+ {[%clk 00:02:05]} {[%emt
00:00:02]} Rxd4 {[%clk 00:02:28]} {[%emt 00:00:01]} 35. Rxd4 {[%clk 00:01:55]}
{[%emt 00:00:20]} Bxd4 {[%clk 00:02:33]} {[%emt 00:00:05]} 36. Re1+ {[%clk
00:01:47]} {[%emt 00:00:18]} Kd6 {[%clk 00:02:41]} {[%emt 00:00:02]} 37. Rd1
{[%clk 00:01:50]} {[%emt 00:00:06]} Ke5 {[%clk 00:02:45]} {[%emt 00:00:07]} 38.
h4 {[%clk 00:01:56]} {[%emt 00:00:05]} Rh8 {[%clk 00:02:04]} {[%emt 00:00:51]}
39. h5 {[%clk 00:02:03]} {[%emt 00:00:02]} f5 {[%clk 00:02:11]} {[%emt
00:00:02]} 40. Rc1 {[%clk 00:01:59]} {[%emt 00:00:14]} Bc5 {[%clk 00:02:18]}
{[%emt 00:00:05]} 41. Kf1 {[%clk 00:02:03]} {[%emt 00:00:05]} Kf4 {[%clk
00:01:54]} {[%emt 00:00:34]} 42. Rd1 {[%clk 00:01:46]} {[%emt 00:00:28]} Kg5
{[%clk 00:01:58]} {[%emt 00:00:06]} 43. Rd7 {[%clk 00:01:51]} {[%emt 00:00:05]}
Kf6 {[%clk 00:01:51]} {[%emt 00:00:17]} 44. g3 {[%clk 00:01:41]} {[%emt
00:00:20]} Rg8 {[%clk 00:01:20]} {[%emt 00:00:41]} 45. Bd5 {[%clk 00:01:21]}
{[%emt 00:00:30]} Rg7 {[%clk 00:01:18]} {[%emt 00:00:13]} 46. Ke2 {[%clk
00:01:08]} {[%emt 00:00:23]} Rh7 {[%clk 00:01:21]} {[%emt 00:00:07]} 47. Bf3
{[%clk 00:01:15]} {[%emt 00:00:02]} Rh8 {[%clk 00:01:16]} {[%emt 00:00:15]} 48.
Rc7 {[%clk 00:01:12]} {[%emt 00:00:13]} Re8+ {[%clk 00:01:17]} {[%emt
00:00:09]} 49. Kf1 {[%clk 00:01:10]} {[%emt 00:00:13]} Rd8 {[%clk 00:01:02]}
{[%emt 00:00:25]} 50. Be2 {[%clk 00:01:05]} {[%emt 00:00:15]} Kg7 {[%clk
00:00:28]} {[%emt 00:00:44]} 51. f4 {[%clk 00:00:54]} {[%emt 00:00:20]} Rd4
{[%clk 00:00:18]} {[%emt 00:00:20]} 52. Bb5 {[%clk 00:00:56]} {[%emt 00:00:09]}
Kh6 {[%clk 00:00:19]} {[%emt 00:00:09]} 53. Rxf7 {[%clk 00:01:01]} {[%emt
00:00:04]} Kxh5 {[%clk 00:00:28]} {[%emt 00:00:01]} 54. Rxf5+ {[%clk 00:01:01]}
{[%emt 00:00:10]} Kg4 {[%clk 00:00:38]} 55. Rg5+ {[%clk 00:00:58]} {[%emt
00:00:14]} Kf3 {[%clk 00:00:40]} {[%emt 00:00:08]} 56. Bc6+ {[%clk 00:01:03]}
{[%emt 00:00:05]} Ke3 {[%clk 00:00:48]} {[%emt 00:00:02]} 57. Re5+ {[%clk
00:01:01]} {[%emt 00:00:11]} Kd2 {[%clk 00:00:57]} {[%emt 00:00:02]} 58. Kg2
{[%clk 00:01:02]} {[%emt 00:00:08]} Bd6 {[%clk 00:00:36]} {[%emt 00:00:31]} 59.
Re6 {[%clk 00:00:41]} {[%emt 00:00:30]} Rd3 {[%clk 00:00:21]} {[%emt 00:00:26]}
60. Bb5 {[%clk 00:00:42]} {[%emt 00:00:09]} Rd4 {[%clk 00:00:27]} {[%emt
00:00:04]} 61. Kf3 {[%clk 00:00:44]} {[%emt 00:00:08]} Kc3 {[%clk 00:00:23]}
{[%emt 00:00:14]} 62. Re3+ {[%clk 00:00:33]} {[%emt 00:00:20]} Kd2 {[%clk
00:00:20]} {[%emt 00:00:13]} 63. Re4 {[%clk 00:00:26]} {[%emt 00:00:17]} Rd5
{[%clk 00:00:24]} {[%emt 00:00:07]} 64. g4 {[%clk 00:00:26]} {[%emt 00:00:10]}
Kc3 {[%clk 00:00:24]} {[%emt 00:00:10]} 65. f5 {[%clk 00:00:28]} {[%emt
00:00:08]} Be5 {[%clk 00:00:26]} {[%emt 00:00:09]} 66. g5 {[%clk 00:00:33]}
{[%emt 00:00:05]} Bd4 {[%clk 00:00:23]} {[%emt 00:00:13]} 67. Kg4 {[%clk
00:00:39]} {[%emt 00:00:04]} Rd8 {[%clk 00:00:19]} {[%emt 00:00:15]} 68. f6
{[%clk 00:00:44]} {[%emt 00:00:05]} Rf8 {[%clk 00:00:22]} {[%emt 00:00:07]} 69.
Kf5 {[%clk 00:00:49]} {[%emt 00:00:04]} Rf7 {[%clk 00:00:27]} {[%emt 00:00:06]}
70. Rxd4 {[%clk 00:00:54]} {[%emt 00:00:06]} Kxd4 {[%clk 00:00:35]} {[%emt
00:00:02]} 71. g6 {[%clk 00:01:02]} {[%emt 00:00:01]} Rc7 {[%clk 00:00:26]}
{[%emt 00:00:18]} 72. g7 {[%clk 00:01:07]} {[%emt 00:00:06]} 1-0

[Event "NK Rapid Vrouwen 2019"]
[Site "Amstelveen, Netherlands"]
[Date "2019.12.01"]
[Round "6.1"]
[White "Peng, Zhaoqin"]
[Black "Roebers, Eline"]
[Result "1/2-1/2"]
[TimeControl "15m+10s"]
[WhiteTitle "GM"]
[WhiteFideId "1004786"]
[BlackFideId "1058401"]
[WhiteElo "2364"]
[BlackElo "2102"]

1. d4 {[%clk 00:15:16]} {[%emt 00:00:03]} Nf6 {[%clk 00:15:18]} {[%emt
00:00:02]} 2. Nf3 {[%clk 00:15:23]} {[%emt 00:00:03]} g6 {[%clk 00:15:26]}
{[%emt 00:00:02]} 3. c4 {[%clk 00:15:18]} {[%emt 00:00:15]} Bg7 {[%clk
00:15:34]} {[%emt 00:00:03]} 4. Nc3 {[%clk 00:15:27]} {[%emt 00:00:01]} O-O
{[%clk 00:15:41]} {[%emt 00:00:03]} 5. e4 {[%clk 00:15:35]} {[%emt 00:00:02]}
d6 {[%clk 00:15:50]} {[%emt 00:00:02]} 6. Be3 {[%clk 00:15:43]} {[%emt
00:00:01]} e5 {[%clk 00:15:08]} {[%emt 00:00:52]} 7. dxe5 {[%clk 00:15:47]}
{[%emt 00:00:05]} dxe5 {[%clk 00:15:17]} {[%emt 00:00:01]} 8. Qxd8 {[%clk
00:15:56]} {[%emt 00:00:02]} Rxd8 {[%clk 00:15:25]} {[%emt 00:00:01]} 9. Nd5
{[%clk 00:16:03]} {[%emt 00:00:02]} Nxd5 {[%clk 00:13:33]} {[%emt 00:02:02]} 10.
cxd5 {[%clk 00:16:11]} {[%emt 00:00:03]} c6 {[%clk 00:12:36]} {[%emt 00:01:08]}
11. Bc4 {[%clk 00:16:17]} {[%emt 00:00:04]} cxd5 {[%clk 00:12:39]} {[%emt
00:00:08]} 12. Bxd5 {[%clk 00:16:17]} {[%emt 00:00:10]} Nc6 {[%clk 00:11:48]}
{[%emt 00:01:02]} 13. O-O-O {[%clk 00:12:58]} {[%emt 00:03:27]} Bd7 {[%clk
00:10:51]} {[%emt 00:01:08]} 14. Kb1 {[%clk 00:10:29]} {[%emt 00:02:38]} h6
{[%clk 00:08:44]} {[%emt 00:02:18]} 15. a3 {[%clk 00:08:28]} {[%emt 00:02:11]}
b6 {[%clk 00:07:18]} {[%emt 00:01:36]} 16. Rd3 {[%clk 00:07:32]} {[%emt
00:01:06]} Rac8 {[%clk 00:06:26]} {[%emt 00:01:02]} 17. Rhd1 {[%clk 00:06:41]}
{[%emt 00:01:00]} Be8 {[%clk 00:06:12]} {[%emt 00:00:24]} 18. b4 {[%clk
00:06:20]} {[%emt 00:00:31]} Kf8 {[%clk 00:05:51]} {[%emt 00:00:31]} 19. Rc3
{[%clk 00:03:28]} {[%emt 00:03:02]} Ne7 {[%clk 00:05:17]} {[%emt 00:00:44]} 20.
Rxc8 {[%clk 00:03:24]} {[%emt 00:00:14]} Nxc8 {[%clk 00:04:47]} {[%emt
00:00:41]} 21. Rc1 {[%clk 00:03:02]} {[%emt 00:00:32]} Ne7 {[%clk 00:04:30]}
{[%emt 00:00:27]} 22. Bb3 {[%clk 00:02:39]} {[%emt 00:00:32]} Rc8 {[%clk
00:04:28]} {[%emt 00:00:12]} 23. Nd2 {[%clk 00:02:10]} {[%emt 00:00:39]} Rxc1+
{[%clk 00:04:19]} {[%emt 00:00:20]} 24. Kxc1 {[%clk 00:02:20]} Nc6 {[%clk
00:04:28]} {[%emt 00:00:01]} 25. Bd5 {[%clk 00:02:08]} {[%emt 00:00:21]} f5
{[%clk 00:03:58]} {[%emt 00:00:39]} 26. f3 {[%clk 00:02:01]} {[%emt 00:00:17]}
1/2-1/2

[Event "NK Rapid Vrouwen 2019"]
[Site "Amstelveen, Netherlands"]
[Date "2019.12.01"]
[Round "6.2"]
[White "Haast, Anne"]
[Black "Jong-Muhren, Bianca de"]
[Result "1-0"]
[TimeControl "15m+10s"]
[WhiteTitle "WGM"]
[BlackTitle "WGM"]
[WhiteFideId "1017292"]
[BlackFideId "1008498"]
[WhiteElo "2288"]
[BlackElo "2249"]

1. e4 {[%clk 00:15:19]} c5 {[%clk 00:15:19]} {[%emt 00:00:01]} 2. Nf3 {[%clk
00:15:27]} {[%emt 00:00:01]} e6 {[%clk 00:15:27]} {[%emt 00:00:03]} 3. d4
{[%clk 00:15:36]} cxd4 {[%clk 00:15:36]} {[%emt 00:00:01]} 4. Nxd4 {[%clk
00:15:44]} Nc6 {[%clk 00:15:45]} {[%emt 00:00:01]} 5. Nc3 {[%clk 00:15:53]}
{[%emt 00:00:02]} Qc7 {[%clk 00:15:55]} 6. Be3 {[%clk 00:16:01]} {[%emt
00:00:01]} a6 {[%clk 00:15:59]} {[%emt 00:00:06]} 7. Qf3 {[%clk 00:16:08]}
{[%emt 00:00:02]} Nf6 {[%clk 00:15:53]} {[%emt 00:00:16]} 8. O-O-O {[%clk
00:15:18]} {[%emt 00:01:00]} Bb4 {[%clk 00:15:23]} {[%emt 00:00:40]} 9. Nxc6
{[%clk 00:14:47]} {[%emt 00:00:40]} Bxc3 {[%clk 00:14:10]} {[%emt 00:01:23]} 10.
bxc3 {[%clk 00:14:07]} {[%emt 00:00:50]} Qxc6 {[%clk 00:14:06]} {[%emt
00:00:15]} 11. Bd4 {[%clk 00:13:52]} {[%emt 00:00:24]} Qxe4 {[%clk 00:13:48]}
{[%emt 00:00:28]} 12. Qg3 {[%clk 00:13:41]} {[%emt 00:00:21]} Qg6 {[%clk
00:12:23]} {[%emt 00:01:35]} 13. Qd6 {[%clk 00:13:35]} {[%emt 00:00:16]} Ne4
{[%clk 00:11:59]} {[%emt 00:00:35]} 14. Qa3 {[%clk 00:13:34]} {[%emt 00:00:11]}
Qg5+ {[%clk 00:06:29]} {[%emt 00:05:40]} 15. Kb2 {[%clk 00:13:28]} {[%emt
00:00:16]} d6 {[%clk 00:06:05]} {[%emt 00:00:33]} 16. Be3 {[%clk 00:12:52]}
{[%emt 00:00:46]} Qe7 {[%clk 00:05:55]} {[%emt 00:00:21]} 17. Qa4+ {[%clk
00:12:57]} {[%emt 00:00:05]} Bd7 {[%clk 00:04:54]} {[%emt 00:01:12]} 18. Qxe4
{[%clk 00:13:04]} {[%emt 00:00:03]} O-O {[%clk 00:05:02]} {[%emt 00:00:02]} 19.
Qb4 {[%clk 00:12:28]} {[%emt 00:00:46]} Bc6 {[%clk 00:04:48]} {[%emt 00:00:25]}
20. Qxd6 {[%clk 00:12:17]} {[%emt 00:00:20]} Qh4 {[%clk 00:04:32]} {[%emt
00:00:26]} 21. Bb6 {[%clk 00:11:00]} {[%emt 00:01:26]} Rac8 {[%clk 00:04:00]}
{[%emt 00:00:42]} 22. Qb4 {[%clk 00:09:44]} {[%emt 00:01:25]} Qh5 {[%clk
00:03:50]} {[%emt 00:00:20]} 23. f3 {[%clk 00:09:36]} {[%emt 00:00:18]} Bd5
{[%clk 00:03:29]} {[%emt 00:00:32]} 24. Rd4 {[%clk 00:09:30]} {[%emt 00:00:16]}
h6 {[%clk 00:00:48]} {[%emt 00:02:52]} 25. Bc4 {[%clk 00:09:27]} {[%emt
00:00:13]} Bxc4 {[%clk 00:00:49]} {[%emt 00:00:09]} 26. Rxc4 {[%clk 00:09:34]}
{[%emt 00:00:03]} a5 {[%clk 00:00:41]} {[%emt 00:00:19]} 27. Qa4 {[%clk
00:09:31]} {[%emt 00:00:12]} Qd5 {[%clk 00:00:27]} {[%emt 00:00:24]} 28. Rd4
{[%clk 00:09:04]} {[%emt 00:00:38]} Qg5 {[%clk 00:00:27]} {[%emt 00:00:09]} 29.
Rg4 {[%clk 00:07:52]} {[%emt 00:01:21]} Qd5 {[%clk 00:00:35]} {[%emt 00:00:04]}
30. Qxa5 {[%clk 00:07:37]} {[%emt 00:00:25]} Qd6 {[%clk 00:00:20]} {[%emt
00:00:24]} 31. Qb4 {[%clk 00:07:40]} {[%emt 00:00:07]} Qd5 {[%clk 00:00:25]}
{[%emt 00:00:06]} 32. a4 {[%clk 00:07:35]} {[%emt 00:00:15]} Rc6 {[%clk
00:00:29]} {[%emt 00:00:06]} 33. Qd4 {[%clk 00:07:32]} {[%emt 00:00:13]} Qxd4
{[%clk 00:00:13]} {[%emt 00:00:26]} 34. Bxd4 {[%clk 00:07:37]} {[%emt
00:00:05]} f6 {[%clk 00:00:20]} {[%emt 00:00:03]} 35. a5 {[%clk 00:07:32]}
{[%emt 00:00:15]} e5 {[%clk 00:00:28]} {[%emt 00:00:01]} 36. Bb6 {[%clk
00:07:31]} {[%emt 00:00:12]} Rfc8 {[%clk 00:00:25]} {[%emt 00:00:13]} 37. Rd1
{[%clk 00:07:39]} {[%emt 00:00:02]} Rxc3 {[%clk 00:00:23]} {[%emt 00:00:13]} 38.
Rd8+ {[%clk 00:07:47]} {[%emt 00:00:02]} Rxd8 {[%clk 00:00:25]} {[%emt
00:00:08]} 39. Bxd8 {[%clk 00:07:51]} {[%emt 00:00:05]} Rc6 {[%clk 00:00:32]}
{[%emt 00:00:04]} 40. Rb4 {[%clk 00:07:45]} {[%emt 00:00:15]} Rc8 {[%clk
00:00:20]} {[%emt 00:00:22]} 41. Be7 {[%clk 00:07:28]} {[%emt 00:00:27]} Rc7
{[%clk 00:00:28]} {[%emt 00:00:03]} 42. Bd6 {[%clk 00:07:35]} {[%emt 00:00:03]}
Rd7 {[%clk 00:00:36]} {[%emt 00:00:02]} 43. Rb6 {[%clk 00:07:42]} {[%emt
00:00:03]} Kf7 {[%clk 00:00:44]} {[%emt 00:00:02]} 44. c4 {[%clk 00:07:43]}
{[%emt 00:00:09]} Ke6 {[%clk 00:00:51]} {[%emt 00:00:03]} 45. Bb4+ {[%clk
00:07:37]} {[%emt 00:00:15]} Kf5 {[%clk 00:00:50]} {[%emt 00:00:12]} 46. Rd6
{[%clk 00:07:45]} {[%emt 00:00:02]} Rc7 {[%clk 00:00:58]} {[%emt 00:00:02]} 47.
Kb3 {[%clk 00:07:49]} {[%emt 00:00:06]} h5 {[%clk 00:00:57]} {[%emt 00:00:11]}
48. Bd2 {[%clk 00:07:51]} {[%emt 00:00:08]} g5 {[%clk 00:00:49]} {[%emt
00:00:18]} 49. Kb4 {[%clk 00:07:51]} {[%emt 00:00:09]} g4 {[%clk 00:00:50]}
{[%emt 00:00:09]} 50. Rd3 {[%clk 00:07:18]} {[%emt 00:00:42]} e4 {[%emt
00:00:15]} 51. Rd5+ {[%clk 00:07:24]} 1-0

[Event "NK Rapid Vrouwen 2019"]
[Site "Amstelveen, Netherlands"]
[Date "2019.12.01"]
[Round "6.3"]
[White "Ratsma, Rosa"]
[Black "Lanchava, Tea"]
[Result "1-0"]
[TimeControl "15m+10s"]
[WhiteTitle "WIM"]
[BlackTitle "IM"]
[WhiteFideId "1033662"]
[BlackFideId "1005308"]
[WhiteElo "2274"]
[BlackElo "2247"]

1. e4 {[%clk 00:15:18]} {[%emt 00:00:02]} c6 {[%clk 00:15:15]} {[%emt
00:00:05]} 2. Nc3 {[%clk 00:15:10]} {[%emt 00:00:17]} g6 {[%clk 00:15:22]}
{[%emt 00:00:03]} 3. d4 {[%clk 00:15:16]} {[%emt 00:00:04]} Bg7 {[%clk
00:15:30]} {[%emt 00:00:02]} 4. Bc4 {[%clk 00:15:16]} {[%emt 00:00:10]} b5
{[%clk 00:14:47]} {[%emt 00:00:53]} 5. Bb3 {[%clk 00:15:24]} {[%emt 00:00:02]}
d6 {[%clk 00:14:43]} {[%emt 00:00:14]} 6. f4 {[%clk 00:13:45]} {[%emt
00:01:49]} b4 {[%clk 00:14:10]} {[%emt 00:00:43]} 7. Nce2 {[%clk 00:13:34]}
{[%emt 00:00:21]} Ba6 {[%clk 00:13:18]} {[%emt 00:01:02]} 8. Nf3 {[%clk
00:13:05]} {[%emt 00:00:39]} Nf6 {[%clk 00:13:17]} {[%emt 00:00:12]} 9. e5
{[%clk 00:12:58]} {[%emt 00:00:17]} Nd5 {[%clk 00:10:24]} {[%emt 00:03:03]} 10.
O-O {[%clk 00:12:00]} {[%emt 00:01:08]} O-O {[%clk 00:10:31]} {[%emt 00:00:03]}
11. a3 {[%clk 00:11:11]} {[%emt 00:00:59]} e6 {[%clk 00:08:11]} {[%emt
00:02:30]} 12. Bxd5 {[%clk 00:10:19]} {[%emt 00:01:01]} cxd5 {[%clk 00:07:52]}
{[%emt 00:00:29]} 13. axb4 {[%clk 00:10:20]} {[%emt 00:00:10]} Qb6 {[%clk
00:07:54]} {[%emt 00:00:08]} 14. c3 {[%clk 00:10:12]} {[%emt 00:00:18]} Bb5
{[%clk 00:06:39]} {[%emt 00:01:25]} 15. Be3 {[%clk 00:08:10]} {[%emt 00:02:11]}
Nd7 {[%clk 00:06:45]} {[%emt 00:00:04]} 16. exd6 {[%clk 00:05:51]} {[%emt
00:02:30]} Qxd6 {[%clk 00:06:49]} {[%emt 00:00:06]} 17. Nd2 {[%clk 00:04:59]}
{[%emt 00:01:02]} Nb6 {[%clk 00:06:26]} {[%emt 00:00:33]} 18. Rf3 {[%clk
00:05:01]} {[%emt 00:00:08]} f6 {[%clk 00:06:08]} {[%emt 00:00:28]} 19. Nc1
{[%clk 00:04:22]} {[%emt 00:00:48]} Nd7 {[%clk 00:05:53]} {[%emt 00:00:25]} 20.
Ncb3 {[%clk 00:04:08]} {[%emt 00:00:24]} a6 {[%clk 00:04:48]} {[%emt 00:01:16]}
21. Nc5 {[%clk 00:03:49]} {[%emt 00:00:28]} Nb6 {[%clk 00:04:06]} {[%emt
00:00:52]} 22. Qe1 {[%clk 00:02:44]} {[%emt 00:01:15]} e5 {[%clk 00:03:25]}
{[%emt 00:00:51]} 23. f5 {[%clk 00:02:49]} {[%emt 00:00:06]} exd4 {[%clk
00:02:34]} {[%emt 00:01:00]} 24. Bxd4 {[%clk 00:02:28]} {[%emt 00:00:31]} Bh6
{[%clk 00:02:42]} {[%emt 00:00:02]} 25. Ndb3 {[%clk 00:02:05]} {[%emt
00:00:33]} Nc4 {[%clk 00:02:41]} {[%emt 00:00:11]} 26. Qf2 {[%clk 00:01:28]}
{[%emt 00:00:47]} Ne5 {[%clk 00:02:21]} {[%emt 00:00:31]} 27. Rh3 {[%clk
00:01:10]} {[%emt 00:00:27]} Bg5 {[%clk 00:02:09]} {[%emt 00:00:22]} 28. Ne6
{[%clk 00:01:11]} {[%emt 00:00:09]} Rf7 {[%clk 00:02:14]} {[%emt 00:00:05]} 29.
Bc5 {[%clk 00:01:02]} {[%emt 00:00:18]} Qd7 {[%clk 00:02:07]} {[%emt 00:00:16]}
30. Nbd4 {[%clk 00:00:53]} {[%emt 00:00:19]} Bd3 {[%clk 00:01:59]} {[%emt
00:00:18]} 31. fxg6 {[%clk 00:00:45]} {[%emt 00:00:18]} Bxg6 {[%clk 00:01:53]}
{[%emt 00:00:16]} 32. Re1 {[%clk 00:00:44]} {[%emt 00:00:10]} Nd3 {[%clk
00:02:00]} {[%emt 00:00:03]} 33. Rxd3 {[%clk 00:00:50]} {[%emt 00:00:04]} Bxd3
{[%clk 00:02:09]} 34. Qg3 {[%clk 00:00:52]} {[%emt 00:00:08]} Bg6 {[%clk
00:02:03]} {[%emt 00:00:16]} 35. h4 {[%clk 00:00:54]} {[%emt 00:00:08]} h6
{[%clk 00:01:07]} {[%emt 00:01:06]} 36. hxg5 {[%clk 00:00:34]} {[%emt
00:00:30]} hxg5 {[%clk 00:01:16]} {[%emt 00:00:01]} 37. Qd6 {[%clk 00:00:27]}
{[%emt 00:00:17]} Qxd6 {[%clk 00:00:59]} {[%emt 00:00:27]} 38. Bxd6 {[%clk
00:00:36]} {[%emt 00:00:02]} Rd7 {[%clk 00:00:53]} {[%emt 00:00:16]} 39. Bc5
{[%clk 00:00:38]} {[%emt 00:00:08]} Re8 {[%clk 00:00:57]} {[%emt 00:00:06]} 40.
Rf1 {[%clk 00:00:40]} {[%emt 00:00:08]} Rf7 {[%clk 00:00:58]} {[%emt 00:00:10]}
41. g4 {[%clk 00:00:41]} {[%emt 00:00:08]} Be4 {[%clk 00:01:04]} {[%emt
00:00:04]} 42. Kf2 {[%clk 00:00:30]} {[%emt 00:00:22]} Kh7 {[%clk 00:01:09]}
{[%emt 00:00:05]} 43. Kg3 {[%clk 00:00:31]} {[%emt 00:00:08]} Kg6 {[%clk
00:01:17]} {[%emt 00:00:02]} 44. Bb6 {[%clk 00:00:30]} {[%emt 00:00:11]} Rh8
{[%clk 00:01:19]} {[%emt 00:00:08]} 45. Nc5 {[%clk 00:00:34]} {[%emt 00:00:06]}
Rfh7 {[%clk 00:00:46]} {[%emt 00:00:44]} 46. Nxe4 {[%clk 00:00:39]} {[%emt
00:00:04]} dxe4 {[%clk 00:00:55]} 47. Nf5 {[%clk 00:00:20]} {[%emt 00:00:29]}
Rh3+ {[%clk 00:01:03]} {[%emt 00:00:03]} 48. Kf2 {[%clk 00:00:28]} {[%emt
00:00:01]} Rh2+ {[%clk 00:00:32]} {[%emt 00:00:40]} 49. Ke3 {[%clk 00:00:31]}
{[%emt 00:00:07]} R8h3+ {[%clk 00:00:40]} {[%emt 00:00:02]} 50. Kxe4 {[%clk
00:00:38]} {[%emt 00:00:04]} Rxb2 {[%clk 00:00:46]} {[%emt 00:00:04]} 51. Bd4
{[%clk 00:00:38]} {[%emt 00:00:10]} Rg2 {[%clk 00:00:53]} {[%emt 00:00:03]} 52.
Ne3 {[%clk 00:00:42]} {[%emt 00:00:06]} Re2 {[%clk 00:00:25]} {[%emt 00:00:38]}
53. Rxf6+ {[%clk 00:00:49]} {[%emt 00:00:03]} Kh7 {[%clk 00:00:34]} 54. Rxa6
{[%clk 00:00:41]} {[%emt 00:00:17]} Rg3 {[%clk 00:00:40]} {[%emt 00:00:04]} 55.
Ra7+ {[%clk 00:00:38]} {[%emt 00:00:13]} Kg6 {[%clk 00:00:43]} {[%emt
00:00:04]} 56. Kd3 {[%clk 00:00:31]} {[%emt 00:00:21]} Re1 {[%clk 00:00:45]}
{[%emt 00:00:07]} 57. Rg7+ {[%clk 00:00:38]} {[%emt 00:00:03]} Kh6 {[%clk
00:00:55]} {[%emt 00:00:01]} 58. Re7 {[%clk 00:00:24]} {[%emt 00:00:24]} Kg6
{[%clk 00:00:55]} {[%emt 00:00:10]} 59. Kd2 {[%clk 00:00:30]} {[%emt 00:00:04]}
Ra1 {[%clk 00:01:02]} {[%emt 00:00:03]} 60. Rg7+ {[%clk 00:00:38]} {[%emt
00:00:03]} 1-0